fUST/lending_fUST_20260521
["ID","MTS","AMOUNT","RATE_DAILY","PERIOD"]
[422753413,1779360639000,-500.0,8.493e-05,2]
[422753427,1779360639000,-177.41,8.493e-05,2]
[422753419,1779360639000,-500.0,8.493e-05,2]
[422753429,1779360639000,-370.21016436,8.493e-05,2]
[422753430,1779360639000,-844.76,8.493e-05,2]
[422753417,1779360639000,-230.55075558,8.493e-05,2]
[422753416,1779360639000,-500.0,8.493e-05,2]
[422753435,1779360639000,-500.0,8.493e-05,2]
[422753432,1779360639000,-500.0,8.493e-05,2]
[422753436,1779360639000,-500.0,8.493e-05,2]
[422753440,1779360639000,-180.28,8.493e-05,2]
[422753438,1779360639000,-415.14,8.493e-05,2]
[422753442,1779360639000,-532.96,8.493e-05,2]
[422753470,1779360639000,-199.25,8.767e-05,2]
[422753446,1779360639000,-500.0,8.493e-05,2]
[422753444,1779360639000,-500.0,8.493e-05,2]
[422753457,1779360639000,-161.7158655,8.691e-05,2]
[422753474,1779360639000,-86.93379108,8.767e-05,2]
[422753466,1779360639000,-477.61,8.767e-05,2]
[422753468,1779360639000,-500.0,8.767e-05,2]
[422753465,1779360639000,-370.21016435,8.767e-05,2]
[422753448,1779360639000,-500.0,8.493e-05,2]
[422753472,1779360639000,-217.7,8.767e-05,2]
[422753477,1779360639000,-413.06620892,8.767e-05,2]
[422753461,1779360639000,-265.96,8.767e-05,2]
[422753459,1779360639000,-365.78944852,8.767e-05,2]
[422753455,1779360639000,-766.48970852,8.691e-05,2]
[422753542,1779360639000,-555.77425972,9.313e-05,2]
[422753453,1779360639000,-160.0,8.691e-05,2]
[422753451,1779360639000,-500.0,8.493e-05,2]
[422753463,1779360639000,-844.76,8.767e-05,2]
[422753544,1779360640000,-555.77425972,9.313e-05,2]
[422753548,1779360640000,-555.77425972,9.313e-05,2]
[422753546,1779360640000,-555.77425972,9.313e-05,2]
[422753550,1779360640000,-555.77425972,9.313e-05,2]
[422753552,1779360640000,-555.77425972,9.313e-05,2]
[422753561,1779360640000,-625.37441174,9.32e-05,2]
[422753553,1779360640000,-555.77425972,9.313e-05,2]
[422753558,1779360640000,-370.21016435,9.315e-05,2]
[422753559,1779360640000,-500.0,9.315e-05,2]
[422753563,1779360640000,-27202.89308332,9.4e-05,2]
[422753566,1779360640000,-1067.72626988,9.4e-05,2]
[422753555,1779360640000,-844.76,9.315e-05,2]
[422753601,1779360644000,-49901.01014424,9.4e-05,2]
[422753599,1779360644000,-5000.0,8.137e-05,2]
[422753607,1779360644000,-40279.87016753,9.4e-05,2]
[422753698,1779360647000,-13793.15493209,9.4e-05,2]
[422753697,1779360647000,-17837.65177969,9.4e-05,2]
[422753700,1779360647000,-253.7425319,9.4e-05,2]
[422753701,1779360647000,-927.19930424,9.4e-05,2]
[422753699,1779360647000,-9145.54176067,9.4e-05,2]
[422753710,1779361088000,-5000.0,8.055e-05,2]
[422753711,1779361092000,-506.8712605,8.177e-05,2]
[422753714,1779361098000,-500.0,8.219e-05,2]
[422753713,1779361098000,-227.0,8.218e-05,2]
[422753712,1779361098000,-1200.0,8.218e-05,2]
[422753716,1779361098000,-500.0,8.219e-05,2]
[422753719,1779361098000,-500.0,8.219e-05,2]
[422753720,1779361098000,-64.35292641,8.219e-05,2]
[422753718,1779361098000,-501.77581309,8.219e-05,2]
[422753717,1779361098000,-500.0,8.219e-05,2]
[422753715,1779361098000,-500.0,8.219e-05,2]
[422753724,1779361103000,-500.0,8.219e-05,2]
[422753721,1779361103000,-435.64707359,8.219e-05,2]
[422753723,1779361103000,-500.0,8.219e-05,2]
[422753722,1779361103000,-500.0,8.219e-05,2]
[422753729,1779361104000,-500.0,8.219e-05,2]
[422753725,1779361104000,-500.0,8.219e-05,2]
[422753728,1779361104000,-500.0,8.219e-05,2]
[422753726,1779361104000,-500.0,8.219e-05,2]
[422753732,1779361104000,-435.64707359,8.219e-05,2]
[422753731,1779361104000,-64.35292641,8.219e-05,2]
[422753730,1779361104000,-500.0,8.219e-05,2]
[422753734,1779361104000,-500.0,8.219e-05,2]
[422753733,1779361104000,-500.0,8.219e-05,2]
[422753727,1779361104000,-500.0,8.219e-05,2]
[422753736,1779361105000,-500.0,8.219e-05,2]
[422753737,1779361105000,-725.0291,8.219e-05,2]
[422753738,1779361105000,-974.08,8.219e-05,2]
[422753739,1779361105000,-500.80288963,8.219e-05,2]
[422753740,1779361105000,-362.66916499,8.219e-05,2]
[422753735,1779361105000,-501.77177179,8.219e-05,2]
[422753743,1779361105000,-500.0,8.219e-05,2]
[422753742,1779361105000,-500.0,8.219e-05,2]
[422753744,1779361105000,-500.0,8.219e-05,2]
[422753745,1779361105000,-500.0,8.219e-05,2]
[422753746,1779361105000,-500.0,8.219e-05,2]
[422753747,1779361105000,-500.0,8.219e-05,2]
[422753741,1779361105000,-137.33083501,8.219e-05,2]
[422753751,1779361106000,-360.72619673,8.219e-05,2]
[422753749,1779361106000,-500.0,8.219e-05,2]
[422753750,1779361106000,-501.94296826,8.219e-05,2]
[422753748,1779361106000,-500.0,8.219e-05,2]
[422753754,1779361107000,-445.96869922,8.219e-05,2]
[422753756,1779361107000,-500.0,8.219e-05,2]
[422753753,1779361107000,-501.69924458,8.219e-05,2]
[422753752,1779361107000,-139.95380327,8.219e-05,2]
[422753755,1779361107000,-500.0,8.219e-05,2]
[422753761,1779361107000,-500.0,8.219e-05,2]
[422753757,1779361107000,-500.0,8.219e-05,2]
[422753762,1779361107000,-412.37825293,8.219e-05,2]
[422753758,1779361107000,-500.0,8.219e-05,2]
[422753759,1779361107000,-500.0,8.219e-05,2]
[422753760,1779361107000,-500.0,8.219e-05,2]
[422753764,1779361108000,-500.0,8.219e-05,2]
[422753763,1779361108000,-87.62174707,8.219e-05,2]
[422753767,1779361108000,-506.27,8.219e-05,2]
[422753765,1779361108000,-500.0,8.219e-05,2]
[422753766,1779361108000,-500.0,8.219e-05,2]
[422753772,1779361108000,-500.0,8.219e-05,2]
[422753770,1779361108000,-500.0,8.219e-05,2]
[422753771,1779361108000,-500.0,8.219e-05,2]
[422753768,1779361108000,-500.0,8.219e-05,2]
[422753773,1779361108000,-404.9427375,8.219e-05,2]
[422753769,1779361108000,-501.16551543,8.219e-05,2]
[422753774,1779361109000,-5000.0,8.137e-05,2]
[422753778,1779361110000,-500.0,8.219e-05,2]
[422753776,1779361110000,-500.0,8.219e-05,2]
[422753777,1779361110000,-500.0,8.219e-05,2]
[422753780,1779361110000,-500.89131013,8.219e-05,2]
[422753775,1779361110000,-95.0572625,8.219e-05,2]
[422753779,1779361110000,-500.0,8.219e-05,2]
[422753782,1779361110000,-500.0,8.219e-05,2]
[422753785,1779361110000,-404.05142737,8.219e-05,2]
[422753783,1779361110000,-500.0,8.219e-05,2]
[422753784,1779361110000,-500.0,8.219e-05,2]
[422753781,1779361110000,-500.0,8.219e-05,2]
[422753787,1779361111000,-166.76412479,8.219e-05,2]
[422753786,1779361111000,-95.94857263,8.219e-05,2]
[422753788,1779361111000,-500.0,8.219e-05,2]
[422753791,1779361111000,-500.0,8.219e-05,2]
[422753790,1779361111000,-500.0,8.219e-05,2]
[422753789,1779361111000,-500.0,8.219e-05,2]
[422753792,1779361111000,-500.0,8.219e-05,2]
[422753797,1779361111000,-300.0,8.382e-05,2]
[422753794,1779361111000,-500.0,8.219e-05,2]
[422753799,1779361111000,-37.28730258,8.382e-05,2]
[422753798,1779361111000,-300.0,8.382e-05,2]
[422753793,1779361111000,-500.0,8.219e-05,2]
[422753796,1779361111000,-300.0,8.382e-05,2]
[422753795,1779361111000,-300.0,8.382e-05,2]
[422753800,1779361120000,-262.71269742,8.382e-05,2]
[422753811,1779361120000,-104.28730258,8.382e-05,2]
[422753809,1779361120000,-300.0,8.382e-05,2]
[422753810,1779361120000,-300.0,8.382e-05,2]
[422753808,1779361120000,-300.0,8.382e-05,2]
[422753806,1779361120000,-300.0,8.382e-05,2]
[422753805,1779361120000,-300.0,8.382e-05,2]
[422753803,1779361120000,-300.0,8.382e-05,2]
[422753804,1779361120000,-300.0,8.382e-05,2]
[422753802,1779361120000,-300.0,8.382e-05,2]
[422753801,1779361120000,-300.0,8.382e-05,2]
[422753807,1779361120000,-300.0,8.382e-05,2]
[422753823,1779361506000,4226.69,0.000178,120]
[422753824,1779361534000,162.36431,3.806e-05,2]
[422753856,1779361616000,-310.1497496,8.489e-05,2]
[422753825,1779361616000,-5000.0,8.056e-05,2]
[422753826,1779361616000,-496.73383529,8.178e-05,2]
[422753827,1779361616000,-500.0,8.219e-05,2]
[422753828,1779361616000,-500.0,8.219e-05,2]
[422753829,1779361616000,-500.0,8.219e-05,2]
[422753831,1779361616000,-495.71269742,8.382e-05,2]
[422753832,1779361616000,-377.01,8.462e-05,2]
[422753833,1779361616000,-500.0,8.462e-05,2]
[422753836,1779361616000,-500.0,8.462e-05,2]
[422753837,1779361616000,-500.0,8.462e-05,2]
[422753835,1779361616000,-500.0,8.462e-05,2]
[422753834,1779361616000,-502.98556569,8.462e-05,2]
[422753838,1779361616000,-500.0,8.462e-05,2]
[422753840,1779361616000,-300.0,8.463e-05,2]
[422753830,1779361616000,-500.0,8.219e-05,2]
[422753839,1779361616000,-500.0,8.462e-05,2]
[422753841,1779361616000,-300.0,8.463e-05,2]
[422753853,1779361616000,-300.0,8.463e-05,2]
[422753854,1779361616000,-300.0,8.463e-05,2]
[422753852,1779361616000,-300.0,8.463e-05,2]
[422753851,1779361616000,-300.0,8.463e-05,2]
[422753850,1779361616000,-300.0,8.463e-05,2]
[422753849,1779361616000,-300.0,8.463e-05,2]
[422753855,1779361616000,-500.0,8.489e-05,2]
[422753847,1779361616000,-300.0,8.463e-05,2]
[422753846,1779361616000,-300.0,8.463e-05,2]
[422753843,1779361616000,-300.0,8.463e-05,2]
[422753845,1779361616000,-300.0,8.463e-05,2]
[422753842,1779361616000,-300.0,8.463e-05,2]
[422753844,1779361616000,-300.0,8.463e-05,2]
[422753848,1779361616000,-300.0,8.463e-05,2]
[422753870,1779361634000,-500.0,8.489e-05,2]
[422753874,1779361634000,-500.0,8.489e-05,2]
[422753873,1779361634000,-500.0,8.489e-05,2]
[422753871,1779361634000,-500.0,8.489e-05,2]
[422753872,1779361634000,-500.0,8.489e-05,2]
[422753869,1779361634000,-500.0,8.489e-05,2]
[422753866,1779361634000,-500.0,8.489e-05,2]
[422753868,1779361634000,-500.0,8.489e-05,2]
[422753867,1779361634000,-500.0,8.489e-05,2]
[422753859,1779361634000,-649.18,8.462e-05,2]
[422753862,1779361634000,-477.34114189,8.489e-05,2]
[422753864,1779361634000,-379.45535758,8.489e-05,2]
[422753863,1779361634000,-500.0,8.489e-05,2]
[422753861,1779361634000,-500.0,8.489e-05,2]
[422753858,1779361634000,-500.0,8.462e-05,2]
[422753860,1779361634000,-189.8502504,8.489e-05,2]
[422753857,1779361634000,-5000.0,8.404e-05,2]
[422753875,1779361634000,-500.0,8.489e-05,2]
[422753865,1779361634000,-500.0,8.489e-05,2]
[422753877,1779361634000,-500.0,8.489e-05,2]
[422753885,1779361634000,-500.0,8.489e-05,2]
[422753878,1779361634000,-500.0,8.489e-05,2]
[422753895,1779361634000,-151.94,8.489e-05,2]
[422753896,1779361634000,-500.0,8.489e-05,2]
[422753894,1779361634000,-500.0,8.489e-05,2]
[422753893,1779361634000,-502.23219048,8.489e-05,2]
[422753892,1779361634000,-367.6359736,8.489e-05,2]
[422753890,1779361634000,-500.0,8.489e-05,2]
[422753891,1779361634000,-500.0,8.489e-05,2]
[422753889,1779361634000,-500.0,8.489e-05,2]
[422753886,1779361634000,-500.0,8.489e-05,2]
[422753887,1779361634000,-500.0,8.489e-05,2]
[422753897,1779361634000,-252.25601205,8.489e-05,2]
[422753883,1779361634000,-500.0,8.489e-05,2]
[422753881,1779361634000,-500.0,8.489e-05,2]
[422753884,1779361634000,-500.0,8.489e-05,2]
[422753882,1779361634000,-500.0,8.489e-05,2]
[422753880,1779361634000,-500.0,8.489e-05,2]
[422753879,1779361634000,-500.0,8.489e-05,2]
[422753888,1779361634000,-500.0,8.489e-05,2]
[422753876,1779361634000,-500.0,8.489e-05,2]
[422753899,1779361786000,-1140.0,8.404e-05,2]
[422753938,1779361832000,-425.97873272,8.32e-05,2]
[422753930,1779361832000,-3596.14083135,8.32e-05,2]
[422754062,1779361838000,-500.0,8.462e-05,2]
[422754064,1779361838000,-505.84481343,8.462e-05,2]
[422754063,1779361838000,-500.92115628,8.462e-05,2]
[422754060,1779361838000,-612.31814382,8.32e-05,2]
[422754061,1779361838000,-486.79915858,8.433e-05,2]
[422754059,1779361838000,-365.56229211,8.32e-05,2]
[422754101,1779361839000,-500.0,8.49e-05,2]
[422754111,1779361839000,-501.36278766,8.49e-05,2]
[422754106,1779361839000,-501.29874819,8.49e-05,2]
[422754109,1779361839000,-501.40073097,8.49e-05,2]
[422754105,1779361839000,-500.0,8.49e-05,2]
[422754107,1779361839000,-500.0,8.49e-05,2]
[422754108,1779361839000,-500.0,8.49e-05,2]
[422754110,1779361839000,-500.0,8.49e-05,2]
[422754103,1779361839000,-500.0,8.49e-05,2]
[422754099,1779361839000,-500.0,8.49e-05,2]
[422754100,1779361839000,-500.0,8.49e-05,2]
[422754104,1779361839000,-501.67778628,8.49e-05,2]
[422754122,1779361839000,-500.0,8.49e-05,2]
[422754125,1779361839000,-500.0,8.49e-05,2]
[422754123,1779361839000,-500.0,8.49e-05,2]
[422754112,1779361839000,-501.38718463,8.49e-05,2]
[422754118,1779361839000,-579.78698434,8.49e-05,2]
[422754119,1779361839000,-500.0,8.49e-05,2]
[422754114,1779361839000,-500.0,8.49e-05,2]
[422754117,1779361839000,-500.0,8.49e-05,2]
[422754115,1779361839000,-500.0,8.49e-05,2]
[422754113,1779361839000,-500.0,8.49e-05,2]
[422754116,1779361839000,-501.56083815,8.49e-05,2]
[422754120,1779361839000,-500.0,8.49e-05,2]
[422754124,1779361839000,-500.0,8.49e-05,2]
[422754102,1779361839000,-500.0,8.49e-05,2]
[422754127,1779361839000,-500.0,8.49e-05,2]
[422754131,1779361839000,-500.0,8.49e-05,2]
[422754121,1779361839000,-500.0,8.49e-05,2]
[422754098,1779361839000,-500.0,8.49e-05,2]
[422754078,1779361839000,-247.74398795,8.489e-05,2]
[422754096,1779361839000,-500.0,8.49e-05,2]
[422754129,1779361839000,-500.0,8.49e-05,2]
[422754069,1779361839000,-540.84844151,8.489e-05,2]
[422754068,1779361839000,-500.0,8.489e-05,2]
[422754066,1779361839000,-500.0,8.462e-05,2]
[422754067,1779361839000,-500.0,8.462e-05,2]
[422754065,1779361839000,-500.0,8.462e-05,2]
[422754070,1779361839000,-635.31864929,8.489e-05,2]
[422754073,1779361839000,-108.80945845,8.489e-05,2]
[422754072,1779361839000,-824.69054155,8.489e-05,2]
[422754079,1779361839000,-500.0,8.489e-05,2]
[422754071,1779361839000,-266.86041785,8.489e-05,2]
[422754081,1779361839000,-500.0,8.489e-05,2]
[422754074,1779361839000,-500.0,8.489e-05,2]
[422754097,1779361839000,-501.31782517,8.49e-05,2]
[422754077,1779361839000,-489.92,8.489e-05,2]
[422754080,1779361839000,-500.0,8.489e-05,2]
[422754075,1779361839000,-649.28,8.489e-05,2]
[422754083,1779361839000,-500.0,8.489e-05,2]
[422754086,1779361839000,-500.0,8.49e-05,2]
[422754087,1779361839000,-500.0,8.49e-05,2]
[422754091,1779361839000,-500.0,8.49e-05,2]
[422754089,1779361839000,-500.0,8.49e-05,2]
[422754084,1779361839000,-501.26156032,8.489e-05,2]
[422754085,1779361839000,-500.0,8.49e-05,2]
[422754082,1779361839000,-500.0,8.489e-05,2]
[422754093,1779361839000,-617.46967758,8.49e-05,2]
[422754094,1779361839000,-500.0,8.49e-05,2]
[422754095,1779361839000,-500.0,8.49e-05,2]
[422754076,1779361839000,-166.96,8.489e-05,2]
[422754126,1779361839000,-500.0,8.49e-05,2]
[422754178,1779361839000,-933.5,9.311e-05,2]
[422754130,1779361839000,-500.0,8.49e-05,2]
[422754158,1779361839000,-219.5,8.763e-05,2]
[422754162,1779361839000,-500.0,8.764e-05,2]
[422754171,1779361839000,-426.42,9.037e-05,2]
[422754165,1779361839000,-620.5905274,8.764e-05,2]
[422754166,1779361839000,-501.78580436,8.764e-05,2]
[422754167,1779361839000,-205.302959,8.764e-05,2]
[422754164,1779361839000,-500.0,8.764e-05,2]
[422754168,1779361839000,-554.43558451,8.764e-05,2]
[422754172,1779361839000,-586.52526834,9.037e-05,2]
[422754185,1779361839000,-500.0,9.399e-05,2]
[422754173,1779361839000,-500.0,9.038e-05,2]
[422754184,1779361839000,-500.0,9.399e-05,2]
[422754183,1779361839000,-500.0,9.399e-05,2]
[422754161,1779361839000,-500.0,8.764e-05,2]
[422754174,1779361839000,-7915.8197669,9.267e-05,2]
[422754128,1779361839000,-500.0,8.49e-05,2]
[422754179,1779361839000,-226.05139194,9.399e-05,2]
[422754175,1779361839000,-451.778,9.284e-05,2]
[422754180,1779361839000,-500.0,9.399e-05,2]
[422754181,1779361839000,-500.0,9.399e-05,2]
[422754182,1779361839000,-500.0,9.399e-05,2]
[422754186,1779361839000,-500.0,9.399e-05,2]
[422754187,1779361839000,-500.0,9.399e-05,2]
[422754190,1779361839000,-500.0,9.399e-05,2]
[422754189,1779361839000,-500.0,9.399e-05,2]
[422754188,1779361839000,-500.0,9.399e-05,2]
[422754192,1779361839000,-500.0,9.399e-05,2]
[422754191,1779361839000,-500.0,9.399e-05,2]
[422754176,1779361839000,-372.0,9.284e-05,2]
[422754163,1779361839000,-501.96735637,8.764e-05,2]
[422754177,1779361839000,-185.0,9.284e-05,2]
[422754170,1779361839000,-933.5,9.037e-05,2]
[422754160,1779361839000,-501.93610241,8.764e-05,2]
[422754132,1779361839000,-500.0,8.49e-05,2]
[422754135,1779361839000,-161.7158655,8.656e-05,2]
[422754136,1779361839000,-160.0,8.656e-05,2]
[422754138,1779361839000,-300.0,8.659e-05,2]
[422754133,1779361839000,-500.0,8.49e-05,2]
[422754137,1779361839000,-300.0,8.659e-05,2]
[422754134,1779361839000,-500.0,8.49e-05,2]
[422754139,1779361839000,-300.0,8.659e-05,2]
[422754141,1779361839000,-300.0,8.659e-05,2]
[422754144,1779361839000,-300.0,8.659e-05,2]
[422754140,1779361839000,-300.0,8.659e-05,2]
[422754142,1779361839000,-300.0,8.659e-05,2]
[422754146,1779361839000,-300.0,8.659e-05,2]
[422754143,1779361839000,-300.0,8.659e-05,2]
[422754157,1779361839000,-500.0,8.763e-05,2]
[422754169,1779361839000,-500.0,8.918e-05,2]
[422754159,1779361839000,-500.0,8.764e-05,2]
[422754155,1779361839000,-500.0,8.763e-05,2]
[422754151,1779361839000,-300.0,8.659e-05,2]
[422754156,1779361839000,-500.0,8.763e-05,2]
[422754153,1779361839000,-933.5,8.763e-05,2]
[422754154,1779361839000,-416.04,8.763e-05,2]
[422754150,1779361839000,-300.0,8.659e-05,2]
[422754148,1779361839000,-300.0,8.659e-05,2]
[422754149,1779361839000,-300.0,8.659e-05,2]
[422754145,1779361839000,-300.0,8.659e-05,2]
[422754147,1779361839000,-300.0,8.659e-05,2]
[422754152,1779361839000,-600.0,8.659e-05,2]
[422754195,1779361840000,-500.0,9.399e-05,2]
[422754197,1779361840000,-500.0,9.399e-05,2]
[422754196,1779361840000,-500.0,9.399e-05,2]
[422754198,1779361840000,-500.0,9.399e-05,2]
[422754194,1779361840000,-500.0,9.399e-05,2]
[422754193,1779361840000,-500.0,9.399e-05,2]
[422754203,1779361840000,-2069.23970772,9.4e-05,2]
[422754200,1779361840000,-500.0,9.399e-05,2]
[422754201,1779361840000,-351.59435335,9.399e-05,2]
[422754202,1779361840000,-166652.47192792,9.4e-05,2]
[422754206,1779361840000,-5279.50497875,9.4e-05,2]
[422754205,1779361840000,-15908.62425324,9.4e-05,2]
[422754204,1779361840000,-976.36547781,9.4e-05,2]
[422754199,1779361840000,-500.0,9.399e-05,2]
[422754214,1779361842000,-2193.7,9.4e-05,2]
[422754213,1779361842000,-7858.32192051,9.4e-05,2]
[422754232,1779361844000,-760.69687761,9.4e-05,2]
[422754230,1779361844000,-1246.62269966,9.4e-05,2]
[422754229,1779361844000,-1909.176872,9.4e-05,2]
[422754231,1779361844000,-8462.20249191,9.4e-05,2]
[422754234,1779361847000,-4874.55407714,9.4e-05,2]
[422754235,1779361847000,-2663.321214,9.4e-05,2]
[422754236,1779361847000,-71122.61930226,9.4e-05,2]
[422754262,1779362532000,162.36431,3.174e-05,2]
[422754266,1779362792000,156.10915148,0.00012979,60]
[422754357,1779363038000,-5000.0,6.039e-05,2]
[422754358,1779363038000,-494.98205189,6.1e-05,2]
[422754360,1779363038000,-300.0,6.221e-05,2]
[422754361,1779363038000,-1200.0,6.221e-05,2]
[422754363,1779363038000,-300.0,6.222e-05,2]
[422754362,1779363038000,-1062.0,6.222e-05,2]
[422754359,1779363038000,-151.0,6.101e-05,2]
[422754366,1779363038000,-3719.8779469,6.223e-05,2]
[422754364,1779363038000,-300.0,6.222e-05,2]
[422754368,1779363038000,-300.0,6.526e-05,2]
[422754365,1779363038000,-300.0,6.222e-05,2]
[422754369,1779363038000,-300.0,6.526e-05,2]
[422754367,1779363038000,-300.0,6.526e-05,2]
[422754379,1779363038000,-64.63928432,6.526e-05,2]
[422754378,1779363038000,-300.0,6.526e-05,2]
[422754371,1779363038000,-300.0,6.526e-05,2]
[422754377,1779363038000,-300.0,6.526e-05,2]
[422754373,1779363038000,-300.0,6.526e-05,2]
[422754376,1779363038000,-300.0,6.526e-05,2]
[422754375,1779363038000,-300.0,6.526e-05,2]
[422754374,1779363038000,-300.0,6.526e-05,2]
[422754370,1779363038000,-300.0,6.526e-05,2]
[422754372,1779363038000,-300.0,6.526e-05,2]
[422754404,1779363040000,-152.0,7.059e-05,7]
[422754405,1779363040000,-152.0,7.059e-05,7]
[422754407,1779363040000,-152.0,7.061e-05,7]
[422754406,1779363040000,-152.0,7.061e-05,7]
[422754401,1779363040000,-1400.0,6.843e-05,2]
[422754396,1779363040000,-235.36071568,6.526e-05,2]
[422754402,1779363040000,-420.0,6.844e-05,2]
[422754400,1779363040000,-301.0,6.843e-05,2]
[422754397,1779363040000,-300.0,6.526e-05,2]
[422754398,1779363040000,-300.0,6.526e-05,2]
[422754408,1779363040000,-152.0,7.063e-05,7]
[422754403,1779363040000,-2688.4225,6.849e-05,2]
[422754409,1779363040000,-300.0914991,7.199e-05,2]
[422754399,1779363040000,-151.0,6.642e-05,2]
[422754412,1779363040000,-393.58315678,7.397e-05,2]
[422754420,1779363040000,-388.46259448,7.599e-05,2]
[422754418,1779363040000,-500.0,7.599e-05,2]
[422754419,1779363040000,-500.0,7.599e-05,2]
[422754421,1779363040000,-220.1286421,7.6e-05,2]
[422754422,1779363040000,-18597.73327659,7.6e-05,2]
[422754423,1779363040000,-841.52588397,7.6e-05,2]
[422754417,1779363040000,-500.0,7.599e-05,2]
[422754416,1779363040000,-500.0,7.599e-05,2]
[422754410,1779363040000,-299.9085009,7.199e-05,2]
[422754411,1779363040000,-1225.66691273,7.397e-05,2]
[422754414,1779363040000,-587.0,7.528e-05,2]
[422754415,1779363040000,-500.0,7.599e-05,2]
[422754413,1779363040000,-1193.22557844,7.397e-05,2]
[422754453,1779363053000,-84.19475826,8.219e-05,2]
[422754444,1779363053000,-5000.0,6.461e-05,2]
[422754445,1779363053000,-9398.87693253,7.6e-05,2]
[422754452,1779363053000,-500.0,8.219e-05,2]
[422754447,1779363053000,-223.46959656,8.1e-05,2]
[422754448,1779363053000,-360.60922467,8.1e-05,2]
[422754449,1779363053000,-92.39077533,8.219e-05,2]
[422754451,1779363053000,-33.26922467,8.219e-05,2]
[422754454,1779363053000,-415.80524174,8.219e-05,2]
[422754450,1779363053000,-652.25,8.219e-05,2]
[422754446,1779363053000,-720.0,7.919e-05,2]
[422754457,1779363053000,-500.0,8.219e-05,2]
[422754455,1779363053000,-500.0,8.219e-05,2]
[422754465,1779363053000,-293.0,8.281e-05,2]
[422754463,1779363053000,-500.0,8.219e-05,2]
[422754460,1779363053000,-500.0,8.219e-05,2]
[422754464,1779363053000,-500.74632693,8.219e-05,2]
[422754462,1779363053000,-500.0,8.219e-05,2]
[422754458,1779363053000,-366.37329217,8.219e-05,2]
[422754459,1779363053000,-133.62670783,8.219e-05,2]
[422754456,1779363053000,-523.97,8.219e-05,2]
[422754461,1779363053000,-500.0,8.219e-05,2]
[422754472,1779363054000,-1889.42,8.663e-05,2]
[422754477,1779363054000,-151.0,8.886e-05,2]
[422754476,1779363054000,-777.91,8.767e-05,2]
[422754474,1779363054000,-456.9201046,8.663e-05,2]
[422754475,1779363054000,-864.0,8.711e-05,2]
[422754471,1779363054000,-576.70010638,8.663e-05,2]
[422754468,1779363054000,-160.0,8.553e-05,2]
[422754470,1779363054000,-160.0,8.638e-05,2]
[422754469,1779363054000,-766.48970852,8.638e-05,2]
[422754467,1779363054000,-161.7158655,8.553e-05,2]
[422754466,1779363054000,-777.91,8.493e-05,2]
[422754478,1779363054000,-537.6845,8.886e-05,2]
[422754473,1779363054000,-500.0,8.663e-05,2]
[422754481,1779363054000,-163.78465323,8.886e-05,2]
[422754485,1779363054000,-557.5788265,8.941e-05,2]
[422754480,1779363054000,-151.0,8.886e-05,2]
[422754479,1779363054000,-151.0,8.886e-05,2]
[422754494,1779363054000,-2249.72834228,9.299e-05,2]
[422754492,1779363054000,-1690.5218347,9.211e-05,2]
[422754491,1779363054000,-198.8981653,9.211e-05,2]
[422754490,1779363054000,-200.0,9.1e-05,2]
[422754486,1779363054000,-578.20924308,8.996e-05,2]
[422754493,1779363054000,-225.31,9.211e-05,2]
[422754487,1779363054000,-777.91,9.041e-05,2]
[422754489,1779363054000,-585.8200863,9.051e-05,2]
[422754482,1779363054000,-156.78401659,8.886e-05,2]
[422754483,1779363054000,-1889.42,8.937e-05,2]
[422754484,1779363054000,-500.0,8.937e-05,2]
[422754488,1779363054000,-13.78289877,9.051e-05,2]
[422754501,1779363656000,250.0,0.00017,120]
[422754505,1779363995000,-300.0,6.859e-05,2]
[422754506,1779363996000,-300.0,6.859e-05,2]
[422754509,1779364180000,164.1415504,3.213e-05,2]
[422754510,1779364180000,1.7939646,3.213e-05,2]
[422754578,1779364232000,-300.0,7.407e-05,2]
[422754582,1779364232000,-300.0,7.407e-05,2]
[422754612,1779364232000,-795.59578847,7.901e-05,2]
[422754588,1779364232000,-300.0,7.407e-05,2]
[422754580,1779364232000,-300.0,7.407e-05,2]
[422754586,1779364232000,-300.0,7.407e-05,2]